bitfinex/quotes_ETHUSD_20241103
["timestamp","ask_amount","ask_price","bid_price","bid_amount"]
[1730601833422,0.0647263,2443.4,2442.9,0.01]
[1730601834315,0.0647263,2443.4,2442.6,5.62621]
[1730601834316,0.0647263,2443.4,2442.7,0.01]
[1730601834565,0.0647263,2443.4,2442.5,0.01]
[1730601834566,1.635,2443.2,2442.5,0.01]
[1730601834707,0.0647263,2443.4,2442.5,4.10407]
[1730601835157,0.0647263,2443.4,2442.5,0.01]
[1730601835312,4.09285,2443.3,2442.5,0.01]
[1730601835510,4.09285,2443.3,2442.1,4.10473]
[1730601835511,4.09329,2443.1,2442.1,0.01]
[1730601835716,5.0647263,2443.4,2442.1,0.574717]
[1730601836010,5.0647263,2443.4,2441.9,1.5323]
[1730601836011,4.09377,2442.8,2441.9,1.5323]
[1730601836213,4.09377,2442.8,2441.7,0.01]
[1730601836214,5.72895,2442.7,2441.7,0.01]
[1730601836429,4.09418,2442.5,2441.7,0.01]
[1730601836755,1.635,2442.7,2441.7,4.1055]
[1730601836925,5.72899,2442.7,2441.7,0.01]
[1730601837130,4.09405,2442.6,2441.7,0.573783]
[1730601837331,5.72899,2442.7,2441.6,1.5323]
[1730601837332,4.09417,2442.5,2441.6,1.5323]
[1730601837530,4.09417,2442.5,2441.2,4.10627]
[1730601837531,4.09454,2442.3,2441.5,0.01]
[1730601837734,4.09417,2442.5,2441.5,0.01]
[1730601837918,8.19,2442.4,2441.2,1.5423]
[1730601838136,4.0946,2442.3,2441.2,1.5423]
[1730601838327,8.19,2442.2,2441.4,0.01]
[1730601838514,8.19,2442.2,2441.3,0.56387]
[1730601839034,8.19,2442.2,2441.6,4.10551]
[1730601839213,8.19,2442.2,2441.7,4.09536]
[1730601839414,8.19,2442.2,2441.8,4.17710612]
[1730601839615,8.19,2442.2,2441.9,1.95001061]
[1730601839946,8.19,2442.2,2441.6,0.02]
[1730601840129,8.19,2442.2,2441.7,4.09547]
[1730601840322,8.19,2442.2,2441.8,0.08188748]
[1730601840518,8.19,2442.2,2441.6,8.21109]
[1730601840822,8.19,2442.2,2441.8,4.09533]
[1730601841134,8.19,2442.2,2442.1,1.5323]
[1730601841319,8.19,2442.2,2441.6,4.09564]
[1730601841320,8.19,2442.2,2441.7,1.5323]
[1730601841664,8.19,2442.2,2441.4,1.5423]
[1730601842513,8.19,2442.2,2441.4,5.63829]
[1730601842719,8.19,2442.2,2441.6,4.11558]
[1730601842954,8.19,2442.2,2441.7,0.411558]
[1730601843114,8.19,2442.2,2441.8,4.17710756]
[1730601843325,8.19,2442.2,2441.8,4.17710555]
[1730601843537,8.19,2442.2,2441.9,4.09513]
[1730601843821,8.19,2442.2,2442.1,4.10483]
[1730601843999,8.19,2442.2,2442.1,5.078027]
[1730601844325,8.19,2442.2,2442.1,5.068027]
[1730601844608,8.19,2442.2,2442.1,8.068027]
[1730601844916,8.19,2442.2,2442.1,8.018027]
[1730601845121,1.6997263,2443.4,2442.7,4.09372]
[1730601845331,1.6997263,2443.4,2442.7,0.818788]
[1730601845481,0.0647263,2443.4,2443.3,5.62512]
[1730601845913,0.0647263,2443.4,2443.3,8.63512]
[1730601847657,0.0647263,2443.4,2443.3,1.5323]
[1730601848022,0.0647263,2443.4,2443.3,5.62512]
[1730601848540,0.0647263,2443.4,2443.3,8.63512]
[1730601848753,0.0647263,2443.4,2443.3,9.908921]
[1730601850052,0.0647263,2443.4,2443.3,5.806101]
[1730601850211,0.0647263,2443.4,2443.3,5.816101]
[1730601850407,0.0647263,2443.4,2443.3,5.806101]
[1730601850749,0.0647263,2443.4,2443.3,9.908921]
[1730601853019,1.5075,2444.5,2443.4,0.01]
[1730601853225,0.0647263,2444.7,2444.1,4.11147]
[1730601853455,0.0647263,2444.7,2444.3,4.0911]
[1730601853610,0.0647263,2444.7,2444.3,4.1011]
[1730601853938,0.0647263,2444.7,2444.4,4.09089]
[1730601854154,0.0647263,2444.7,2444.6,4.09064]
[1730601854433,0.0647263,2444.7,2444.6,9.528685]
[1730601854641,0.0647263,2446.0,2445.2,4.08951]
[1730601854815,0.0647263,2446.0,2445.4,4.08922]
[1730601855149,0.0647263,2446.0,2445.2,1.5989]
[1730601855359,0.0647263,2446.0,2445.3,4.08938]
[1730601855514,0.0647263,2446.0,2445.3,4.08936]
[1730601855716,0.0647263,2446.0,2445.2,1.5989]
[1730601856326,1.5075,2445.7,2444.7,4.09047]
[1730601856572,8.40384955,2445.8,2444.3,4.6089]
[1730601856573,1.5075,2445.5,2444.3,1.5989]
[1730601856850,1.5075,2445.5,2444.2,4.10121]
[1730601856851,4.0894,2445.4,2444.2,0.01]
[1730601857063,4.08931,2445.4,2444.0,1.5989]
[1730601857210,4.09034,2444.8,2443.6,5.69108]
[1730601857426,1.5075,2444.9,2443.8,0.01]
[1730601857611,1.5075,2444.9,2443.8,4.10188]
[1730601858124,4.09034,2444.8,2443.6,6.78073181]
[1730601858352,4.09034,2444.8,2443.6,6.78066181]
[1730601858510,4.09048,2444.7,2443.6,6.77066181]
[1730601858710,9.6881,2444.9,2443.7,4.77015618]
[1730601858907,1.5075,2444.9,2444.0,0.01]
[1730601859119,6.5737,2445.3,2444.4,4.09096]
[1730601859346,5.0,2445.3,2444.8,4.09027]
[1730601859654,1.5737,2445.7,2445.2,4.08964]
[1730601859804,1.5737,2445.7,2445.1,4.08969]
[1730601860005,1.5737,2445.7,2445.0,1.6545]
[1730601860440,1.5737,2445.7,2445.0,4.6545]
[1730601860660,1.5737,2445.7,2444.8,3.0]
[1730601860807,1.5737,2445.7,2444.8,4.09027]
[1730601861006,1.5737,2445.7,2444.6,1.6545]
[1730601861251,1.5737,2445.7,2445.0,4.08997]
[1730601861449,0.0455579,2445.8,2445.3,4.08937]
[1730601861651,0.0455579,2445.8,2445.2,4.08953]
[1730601861815,0.0455579,2445.8,2445.3,7.08945]
[1730601862149,0.0455579,2445.8,2445.3,3.0]
[1730601862472,0.0455579,2445.8,2445.3,7.08944]
[1730601862666,0.0455579,2445.8,2445.3,8.208337]
[1730601863414,0.0455579,2445.8,2445.3,4.118897]
[1730601863819,0.0455579,2445.8,2445.3,8.208367]
[1730601864059,0.0455579,2445.8,2445.3,7.08947]
[1730601864362,0.0455579,2445.8,2445.2,3.0]
[1730601864862,0.0455579,2445.8,2445.2,7.08964]
[1730601865063,0.0455579,2445.8,2445.2,3.0]
[1730601865272,0.0455579,2445.8,2445.2,7.08963]
[1730601865561,0.0455579,2445.8,2445.0,0.708997]
[1730601865763,0.0455579,2445.8,2445.0,7.08997]
[1730601865922,0.0455579,2445.8,2445.2,4.08963]
[1730601866255,0.0455579,2445.8,2445.2,4.08964]
[1730601866622,0.0455579,2445.8,2445.3,4.08947]
[1730601866846,0.0455579,2445.8,2445.3,8.17884]
[1730601867169,0.0455579,2445.8,2445.1,5.74415]
[1730601867324,0.0455579,2445.8,2445.1,1.6545]
[1730601867525,0.0455579,2445.8,2445.3,4.08938]
[1730601867765,0.0455579,2445.8,2445.2,4.08964]
[1730601868260,1.6192579,2445.8,2445.1,4.6545]
[1730601868475,5.7078979,2445.8,2444.7,1.6545]
[1730601868623,4.08889,2445.7,2444.6,8.18112]
[1730601868823,4.08889,2445.7,2444.6,4.09056]
[1730601869053,4.08898,2445.6,2444.6,0.984593]
[1730601869267,4.08898,2445.6,2443.4,4.09249]
[1730601869268,4.08986,2445.1,2444.0,4.09156]
[1730601869486,4.08986,2445.1,2443.9,4.09173]
[1730601869487,9.97880955,2445.0,2443.9,4.09173]
[1730601869631,1.5737,2445.0,2444.0,4.09157]
[1730601869965,1.5737,2445.0,2444.1,4.09139]
[1730601870192,1.5737,2445.0,2444.2,4.09124]
[1730601870349,1.5737,2445.0,2444.3,4.09112]
[1730601871136,1.5737,2445.0,2444.2,3.818263]
[1730601871477,1.5737,2445.0,2444.2,3.0]
[1730601871772,5.66368,2445.0,2444.0,3.0]
[1730601872134,4.0904,2444.8,2443.7,5.74654]
[1730601872333,4.09016,2444.9,2443.9,4.09181]
[1730601872552,1.5737,2445.0,2444.1,4.09143]
[1730601872769,1.5737,2445.0,2444.0,4.09163]
[1730601872967,1.5737,2445.0,2444.1,4.09136]
[1730601873177,1.5737,2445.0,2444.4,4.09085]
[1730601873572,1.5737,2445.0,2444.3,3.0]
[1730601874097,1.5737,2445.0,2444.3,7.09112]
[1730601874637,1.5737,2445.0,2444.2,3.0]
[1730601875034,5.66328,2445.3,2444.3,4.09106]
[1730601875680,5.66328,2445.3,2444.3,4.08711833]
[1730601875980,1.5737,2445.3,2444.4,4.09095]
[1730601876538,5.66327,2445.3,2444.3,5.20496616]
[1730601876753,1.5737,2445.3,2444.3,5.20496616]
[1730601877271,5.66326,2445.3,2444.3,5.20496616]
[1730601877479,1.5737,2445.3,2444.3,5.20496616]
[1730601877689,1.5737,2445.7,2444.8,4.09022]
[1730601878095,9.1342679,2445.8,2444.4,0.52049662]
[1730601878096,4.08931,2445.4,2444.4,3.52049662]
[1730601878409,1.5737,2445.3,2444.4,3.0]
[1730601878598,1.5737,2445.3,2444.5,4.09071]
[1730601878803,1.5737,2445.3,2444.5,3.0]
[1730601879016,1.5737,2445.3,2443.7,1.6545]
[1730601879293,1.5737,2444.8,2443.7,5.74663]
[1730601879470,4.08951,2445.3,2443.2,0.01]
[1730601879471,4.09095,2444.5,2443.5,4.09241]
[1730601879671,1.5737,2444.6,2443.5,4.667081]
[1730601879672,5.66438,2444.6,2443.5,4.667081]
[1730601879898,1.5737,2444.6,2443.5,4.667041]
[1730601880056,5.66436,2444.6,2443.6,4.09215]
[1730601880257,5.66436,2444.6,2443.5,4.667161]
[1730601880689,1.5737,2444.6,2443.6,4.09218]
[1730601880875,1.5737,2444.6,2443.7,4.5587371]
[1730601881498,1.5737,2444.6,2443.7,0.4666871]
[1730601881716,1.5737,2444.6,2444.0,4.09153]
[1730601882001,1.5737,2444.6,2444.1,4.09138]
[1730601882204,1.5737,2444.6,2443.7,0.4666871]
[1730601882205,1.5737,2445.2,2443.9,4.6545]
[1730601882364,1.5737,2445.2,2444.6,4.0906]
[1730601882995,1.5737,2445.2,2444.5,4.09066]
[1730601883187,1.5737,2445.2,2444.3,4.09101]
[1730601883993,1.5737,2445.2,2444.5,4.09072]
[1730601884194,1.5737,2445.2,2444.5,8.18144]
[1730601884382,0.82793802,2445.6,2444.6,1.6545]
[1730601884588,1.5737,2445.5,2445.0,4.08983]
[1730601885470,1.5737,2445.5,2445.0,8.1797]
[1730601885668,0.0455579,2445.8,2445.1,4.08964]
[1730601885885,0.29674702,2445.7,2445.0,4.08983]
[1730601886067,0.0455579,2445.8,2445.1,4.08979]
[1730601887174,0.0455579,2445.8,2445.3,4.08944]
[1730601887701,0.0455579,2445.8,2445.3,1.6545]
[1730601887885,0.0455579,2445.8,2445.3,3.0]
[1730601888463,0.0455579,2445.8,2445.1,4.0898]
[1730601888676,0.0455579,2445.8,2445.2,3.0]
[1730601889005,0.0455579,2445.8,2445.2,4.08962]
[1730601889006,0.29741437,2445.7,2445.2,4.08962]
[1730601889302,0.87349592,2445.8,2445.1,1.0243163]
[1730601889465,1.1256728,2445.7,2444.9,8.74462]
[1730601889671,2.7795728,2445.6,2444.6,4.09054]
[1730601889972,1.1256728,2445.5,2444.7,4.09048]
[1730601890178,1.1256728,2445.4,2444.7,4.09048]
[1730601890357,0.29773478,2445.3,2444.6,4.09054]
[1730601890562,1.1256728,2445.3,2444.6,8.18106]
[1730601890758,0.29773478,2445.2,2444.7,4.09044]
[1730601891886,0.29828171,2445.1,2444.7,3.0]
[1730601892089,0.29828171,2445.1,2444.8,4.09027]
[1730601892290,0.82793802,2445.3,2444.7,7.09032]
[1730601892610,0.29828207,2445.2,2444.8,4.09028]
[1730601893112,0.29828207,2445.2,2445.1,4.08981]
[1730601893411,0.29828207,2445.4,2445.1,4.08981]
[1730601893561,0.29828207,2445.4,2445.3,4.08947]
[1730601894021,0.82793802,2445.6,2445.3,4.08947]
[1730601894022,0.29828207,2445.5,2445.3,4.08947]
[1730601894164,0.29828207,2445.4,2445.1,4.08969]
[1730601894360,0.29828207,2445.3,2445.1,4.08969]
[1730601894592,0.82793802,2445.6,2445.1,4.08969]
[1730601894803,1.12632282,2445.5,2445.1,4.08969]
[1730601895027,0.2983848,2445.4,2445.1,8.1794]
[1730601895318,0.82793802,2445.6,2445.2,4.08961]
[1730601895493,0.29838607,2445.3,2445.2,4.90757]
[1730601895804,0.29738607,2445.3,2445.2,0.81793]
[1730601895987,0.82793802,2445.6,2444.9,5.69407]
[1730601895988,0.82793802,2445.5,2444.9,4.09007]
[1730601896190,0.82793802,2445.4,2445.0,0.08177615]
[1730601896423,1.6539,2445.3,2444.7,4.09036]
[1730601896575,2.48183802,2445.3,2444.8,4.09028]
[1730601897281,0.82793802,2445.3,2444.9,0.08178358]
[1730601897804,0.82793802,2445.3,2444.6,0.818106]
[1730601897980,0.82793802,2445.3,2444.5,4.604]
[1730601897981,0.82793802,2445.1,2444.5,4.0908]
[1730601898178,0.82793802,2445.1,2444.7,4.09047]
[1730601898695,0.82793802,2445.0,2444.6,4.09053]
[1730601898871,0.82793802,2445.0,2444.6,4.908663]
[1730601899211,0.82793802,2445.1,2444.8,4.09018]
[1730601899369,1.24190704,2445.2,2444.8,4.09018]
[1730601899370,0.82793802,2445.2,2445.1,4.08981]
[1730601899570,0.82793802,2445.4,2445.1,4.08981]
[1730601899763,0.82793802,2445.4,2445.3,4.08947]
[1730601900008,0.83654396,2445.4,2445.3,4.08947]
[1730601900207,0.83654396,2445.4,2445.3,4.55616486]
[1730601900502,1.24190704,2445.6,2445.4,4.08931]
[1730601900704,0.83651263,2445.5,2445.4,4.08931]
[1730601901208,0.83651263,2445.5,2445.3,4.55615486]
[1730601901381,0.83651263,2445.5,2444.8,4.604]
[1730601901582,1.24190704,2445.5,2445.3,4.08947]
[1730601901815,0.8366056,2445.5,2445.3,4.08947]
[1730601902379,1.24190704,2445.6,2445.2,4.08961]
[1730601902380,0.8366056,2445.4,2445.2,4.08961]
[1730601902717,0.8366056,2445.4,2445.3,4.08947]
[1730601903014,1.24190704,2445.5,2445.4,4.08931]
[1730601903015,0.8366056,2445.5,2445.4,4.08931]
[1730601903307,0.8366056,2445.6,2445.3,0.817902]
[1730601903471,0.8366056,2445.6,2445.2,4.08956]
[1730601903472,0.8366056,2445.4,2445.2,4.08956]
[1730601903667,0.8366056,2445.4,2445.3,4.08947]
[1730601904370,1.5916,2445.3,2444.6,4.908673]
[1730601904673,0.83638091,2444.9,2444.6,0.818133]
[1730601904907,0.83638091,2444.9,2444.7,4.17227452]
[1730601904908,0.83638091,2444.8,2444.7,4.17227452]
[1730601905224,1.25457136,2444.9,2444.7,4.17227452]
[1730601905225,0.83638091,2444.9,2444.8,4.09031]
[1730601905514,0.83638091,2444.9,2444.7,0.90810475]
[1730601905713,0.83633048,2444.8,2444.7,0.90810475]
[1730601905865,0.83633048,2444.8,2444.7,4.99858475]
[1730601906067,1.25457136,2444.9,2444.8,4.09031]
[1730601906068,0.83633048,2444.9,2444.8,4.09031]
[1730601906269,0.83633048,2445.1,2445.0,4.08997]
[1730601906471,0.83633048,2445.2,2445.1,4.08981]
[1730601906779,0.83633048,2445.2,2444.9,4.09004]
[1730601906780,1.25457136,2445.2,2444.9,4.09004]
[1730601906992,0.83629859,2445.1,2445.0,4.08994]
[1730601907196,1.25457136,2445.2,2445.1,4.08981]
[1730601907417,0.83632548,2445.2,2445.1,4.907785]
[1730601907733,1.25457136,2445.3,2445.1,4.907785]
[1730601907734,0.83635954,2445.3,2445.2,4.08964]
[1730601908019,1.25457136,2445.3,2445.1,0.817975]
[1730601908309,0.83638279,2445.2,2445.0,4.08987]
[1730601908508,0.83638279,2445.2,2444.9,4.09013]
[1730601908677,0.83638279,2445.1,2444.9,4.09013]
[1730601908879,0.83638279,2445.1,2444.8,4.09017]
[1730601909079,0.83638279,2445.0,2444.8,4.09017]
[1730601909391,0.83638279,2445.1,2444.9,0.49944713]
[1730601909574,0.83638279,2445.0,2444.7,0.90430134]
[1730601909781,0.83638279,2444.9,2444.7,0.90430134]
[1730601909981,0.83638279,2444.9,2444.8,4.09031]
[1730601910284,0.83638279,2444.9,2444.4,4.09084]
[1730601910488,0.83638279,2444.8,2444.0,1.6157]
[1730601910687,2.42798279,2444.5,2443.7,4.09208]
[1730601910873,2.42798279,2444.5,2443.6,5.70788]
[1730601910874,0.83638279,2444.2,2443.8,4.09197]
[1730601911076,0.83638279,2444.2,2443.8,5.071959]
[1730601911490,0.83638279,2444.2,2443.8,5.071849]
[1730601911693,0.83638279,2444.2,2443.8,0.979989]
[1730601911935,0.83638279,2444.0,2443.2,1.6157]
[1730601912235,0.83638279,2443.9,2443.3,4.09282]
[1730601912536,0.83638279,2443.8,2443.5,4.09248]
[1730601913190,0.83638279,2443.8,2443.3,8.18555]
[1730601913392,0.83638279,2443.7,2443.2,4.09298]
[1730601914129,0.83638279,2443.7,2443.2,4.09289]
[1730601914130,0.83638279,2443.6,2443.2,4.09289]
[1730601914333,0.83638279,2443.7,2443.2,4.09289]
[1730601914543,0.83638279,2443.7,2443.3,4.09279]
[1730601914910,1.25457136,2443.8,2443.1,4.09303]
[1730601914911,0.83638279,2443.6,2443.1,4.09303]
[1730601915120,0.83638279,2443.6,2443.1,5.073242]
[1730601915435,0.83638279,2443.7,2443.3,4.09272]
[1730601915602,0.83638279,2443.7,2443.4,0.08183585]
[1730601916112,0.83638279,2443.7,2443.5,1.6157]
[1730601916312,2.09095415,2444.1,2443.9,4.09182]
[1730601916531,0.83638279,2444.3,2444.1,4.6157]
[1730601916832,0.83638279,2444.8,2444.7,4.09048]
[1730601917151,1.25457136,2445.0,2444.9,4.09014]
[1730601917440,1.5916,2445.5,2445.1,4.08979]
[1730601917441,0.8344541,2445.5,2445.1,4.08979]
[1730601917620,0.8837638,2445.6,2445.4,4.08931]
[1730601917993,0.0493097,2445.6,2445.5,8.81900615]
[1730601918249,0.0493097,2445.6,2445.5,8.74724]
[1730601918397,0.0493097,2445.6,2445.5,8.73724]
[1730601919074,0.0493097,2445.6,2445.5,8.74724]
[1730601919218,0.0493097,2445.6,2445.5,10.031895]
[1730601919416,0.0493097,2445.6,2445.5,10.021895]
[1730601919758,0.0493097,2445.6,2445.5,10.031895]
[1730601919960,0.8344541,2446.4,2446.3,4.0878]
[1730601920129,0.8344541,2446.5,2446.4,4.08763]
[1730601920339,0.8344541,2446.6,2446.5,4.08747]
[1730601920570,0.8344541,2446.7,2446.5,4.08747]
[1730601920864,0.8344541,2446.7,2446.6,4.0873]
[1730601921246,0.8944724,2446.8,2446.7,4.08713]
[1730601921443,0.0600183,2446.8,2446.7,4.08713]
[1730601921974,0.0600183,2446.8,2446.6,4.0873]
[1730601922135,0.0600183,2446.8,2446.6,0.9157183]
[1730601922346,0.0600183,2446.8,2446.4,9.157423]
[1730601922347,0.0600183,2446.8,2446.5,4.08735]
[1730601922547,0.0600183,2446.8,2446.4,5.069883]
[1730601922548,0.0600183,2446.8,2446.7,4.08713]
[1730601922741,0.0600183,2446.8,2446.6,4.08719]
[1730601922943,0.0600183,2446.8,2446.7,0.08172564]
[1730601923200,0.0600183,2446.8,2446.0,4.08826]
[1730601923346,1.5547,2446.7,2446.1,0.408826]
[1730601923529,1.5547,2446.7,2446.3,4.08768]
[1730601923926,6.7439,2446.6,2446.4,4.08761]
[1730601924174,6.7439,2446.6,2446.5,4.08747]
[1730601924325,6.7439,2446.6,2446.4,4.08761]
[1730601924529,6.7439,2446.6,2446.4,8.992698]
[1730601924736,6.7439,2446.6,2446.4,4.905088]
[1730601925676,6.7439,2446.6,2446.5,4.08747]
[1730601925896,6.7439,2446.6,2446.5,4.16920308]
[1730601926229,6.7439,2446.6,2446.5,4.08747]
[1730601927369,6.7439,2446.6,2446.5,7.09747]
[1730601927878,6.7439,2446.6,2446.1,4.69591368]
[1730601927879,6.7439,2446.6,2446.1,0.408826]
[1730601928046,6.7439,2446.6,2445.8,4.08849]
[1730601928386,6.7439,2446.6,2446.4,4.08762]
[1730601928531,6.7439,2446.6,2446.4,4.16935709]
[1730601928978,6.7439,2446.6,2446.2,4.08786]
[1730601929144,6.7439,2446.6,2446.2,8.17572]
[1730601929340,6.7439,2446.6,2446.2,8.993292]
[1730601929564,6.7439,2446.6,2446.2,4.905432]
[1730601929744,6.7439,2446.6,2446.2,0.817572]
[1730601929944,6.7439,2446.6,2446.1,8.17606]
[1730601930132,6.7439,2446.6,2446.1,4.08802]
[1730601930342,1.5547,2446.5,2445.9,8.17677]
[1730601930571,1.5547,2446.5,2446.1,4.0881]
[1730601931452,6.7439,2446.6,2446.5,4.08747]
[1730601931657,6.7439,2446.6,2446.5,4.98671401]
[1730601931859,6.7439,2446.6,2446.5,0.81751]
[1730601932074,6.7439,2446.6,2446.2,4.08787]
[1730601932285,6.7439,2446.6,2446.0,4.08815]
[1730601932583,5.64218,2446.5,2445.6,4.08885]
[1730601932744,1.5547,2446.5,2445.5,1.284655]
[1730601932946,1.5547,2446.5,2444.5,1.63646]
[1730601932947,4.08834,2446.0,2445.0,4.08982]
[1730601933182,5.70087,2445.9,2444.8,1.5351]
[1730601933342,5.70087,2445.9,2444.4,4.09091]
[1730601933343,1.6123,2445.7,2444.5,1.5351]
[1730601933543,1.6123,2445.7,2444.8,4.09022]
[1730601933791,1.6123,2445.7,2444.1,4.28708768]
[1730601933792,1.6123,2445.4,2444.2,4.09131]
[1730601934056,1.6123,2445.4,2445.0,4.08986]
[1730601934201,1.6123,2445.4,2445.1,4.17155956]
[1730601934357,1.6123,2445.8,2445.4,4.08919]
[1730601934895,1.6123,2445.8,2445.4,8.17841]
[1730601935107,1.6123,2445.8,2445.5,0.08176764]
[1730601935395,1.6123,2445.8,2445.5,4.17087615]
[1730601935552,1.6123,2445.8,2445.5,0.90777277]
[1730601935896,1.6123,2445.8,2445.3,0.08176765]
[1730601936190,1.6123,2445.8,2445.2,4.08955]
[1730601936191,1.6123,2445.8,2445.2,4.08948]
[1730601936406,1.6123,2445.8,2445.5,4.08913]
[1730601936691,1.6123,2446.2,2445.4,4.08926]
[1730601936867,2.4467541,2446.2,2445.5,0.08176231]
[1730601937065,2.4467541,2446.2,2445.4,4.08926]
[1730601937257,2.4467541,2446.2,2445.5,0.08176231]
[1730601937599,1.6123,2446.2,2445.5,0.08176234]
[1730601937809,1.6123,2446.1,2445.0,3.0]
[1730601938134,1.6123,2446.1,2444.9,4.08998]
[1730601938303,4.08847,2445.9,2444.9,4.08998]
[1730601938608,4.08847,2445.9,2445.0,0.408998]
[1730601938981,8.17707,2445.9,2445.0,0.408998]
[1730601939186,8.17707,2445.9,2444.3,0.562641]
[1730601939187,0.01,2445.6,2444.3,0.562641]
[1730601939385,0.01,2445.6,2444.0,1.5351]
[1730601939386,1.6123,2445.1,2444.0,1.5351]
[1730601939582,1.6123,2445.1,2444.4,4.09086]
[1730601940091,1.6123,2445.1,2444.0,5.62671]
[1730601940092,8.1808,2445.0,2444.5,0.05014849]
[1730601940396,8.1808,2445.0,2444.8,4.09021]
[1730601940973,8.1808,2445.0,2444.9,4.09014]
[1730601941215,8.1808,2445.0,2444.9,5.061685]
[1730601942508,1.6123,2445.5,2444.9,0.971545]
[1730601942717,1.6123,2445.5,2444.6,4.09051]
[1730601942871,5.70146,2445.5,2444.6,4.09051]
[1730601943072,4.08973,2445.2,2444.2,4.09121]
[1730601943318,0.8444541,2445.5,2444.3,4.17281802]
[1730601943319,1.6123,2445.1,2444.3,4.17281802]
[1730601943607,1.6123,2445.1,2444.4,8.18184]
[1730601943830,1.6123,2445.1,2443.9,5.62688]
[1730601943831,1.6123,2445.1,2444.5,0.90816025]
[1730601943977,1.6123,2445.5,2444.6,5.62571]
[1730601944175,0.8344541,2445.8,2445.2,4.08955]
[1730601944386,0.8344541,2445.8,2444.6,1.5351]
[1730601944387,2.4467541,2445.9,2445.5,4.08899]
[1730601944579,2.4467541,2445.9,2445.6,0.08176767]
[1730601944580,1.6123,2445.9,2445.6,0.08176767]
[1730601945118,1.65587605,2446.4,2445.6,0.08176767]
[1730601945119,0.8344541,2446.4,2445.6,0.08176467]
[1730601945340,1.6123,2446.5,2446.2,4.08788]
[1730601945541,1.6123,2446.5,2446.0,4.08815]
[1730601945724,1.6123,2446.5,2446.1,4.496915]
[1730601945911,1.6123,2446.5,2446.1,0.408815]
[1730601946113,1.6123,2446.5,2446.2,4.08797]
[1730601946305,1.6123,2446.5,2446.2,8.25759794]
[1730601946498,1.6723183,2446.8,2446.2,8.17585]
[1730601946704,1.6723183,2446.8,2446.2,4.08788]
[1730601946933,1.6723183,2446.8,2446.3,0.08173734]
[1730601947139,1.6723183,2446.8,2446.2,4.08788]
[1730601947310,1.6723183,2446.8,2445.8,7.08855]
[1730601947518,2.5067724,2446.8,2445.8,3.0]
[1730601947714,2.5067724,2446.8,2446.0,7.08824]
[1730601947914,2.5067724,2446.8,2446.1,4.08802]
[1730601948145,2.5067724,2446.8,2445.6,4.08886]
[1730601948146,2.5067724,2446.8,2446.2,4.08786]
[1730601948344,1.6723183,2446.8,2446.3,4.5782027]
[1730601948528,1.6123,2446.6,2445.8,4.08861]
[1730601948740,1.6123,2446.6,2445.4,0.08174824]
[1730601949097,1.6123,2446.6,2446.3,4.08772]
[1730601949249,1.6123,2446.6,2446.4,4.08762]
[1730601949448,0.0600183,2446.8,2446.4,0.817534]
[1730601949802,0.0600183,2446.8,2446.4,4.905154]
[1730601950042,0.0600183,2446.8,2446.6,4.08729]
[1730601950346,0.0600183,2446.8,2446.7,4.08713]
[1730601950845,0.0600183,2446.8,2446.7,7.08713]
[1730601951002,0.0600183,2446.8,2446.7,8.204572]
[1730601951210,0.0600183,2448.0,2447.9,4.08513]
[1730601951521,0.0600183,2448.0,2447.9,7.08513]
[1730601951845,0.0600183,2448.0,2447.9,9.747471]
[1730601952404,0.0600183,2448.0,2447.9,9.757471]
[1730601952640,0.0600183,2449.2,2447.9,9.757471]
[1730601952641,0.0200366,2449.2,2448.6,4.08384]
[1730601953078,4.08347,2448.9,2448.0,3.0]
[1730601953224,1.5438,2448.8,2447.9,3.0]
[1730601953417,1.5438,2448.8,2447.9,3.3]
[1730601953640,1.5438,2448.8,2447.9,0.3]
[1730601954046,1.5438,2448.8,2447.3,0.01]
[1730601954047,1.5438,2448.5,2447.1,1.5453]
[1730601954231,1.5438,2448.5,2447.5,4.08569]
[1730601954437,1.5438,2448.5,2447.1,5.63172]
[1730601954641,1.5438,2448.5,2447.7,4.08533]
[1730601954848,4.08433,2448.4,2447.1,5.6317]
[1730601955061,1.5438,2448.2,2447.3,4.08602]
[1730601955275,4.08488,2448.1,2447.2,0.56317]
[1730601955562,4.08488,2448.1,2446.7,1.117442]
[1730601955563,0.01,2447.8,2446.7,1.117442]
[1730601955762,0.01,2447.8,2446.5,4.08739]
[1730601955763,1.5438,2447.4,2446.5,4.08739]
[1730601956072,1.5438,2447.4,2446.5,4.08747]
[1730601956587,4.08616,2447.3,2446.4,0.817534]
[1730601956768,1.5438,2447.4,2446.7,4.08698]
[1730601956962,1.5438,2447.4,2447.0,4.08653]
[1730601957266,1.5438,2447.4,2446.4,0.817534]
[1730601957473,1.5438,2447.4,2446.4,4.08762]
[1730601957826,1.5438,2447.4,2446.5,3.0]
[1730601958031,1.5438,2447.4,2446.7,4.0871]
[1730601958877,1.5438,2447.4,2446.0,1.5653]
[1730601958878,4.08614,2447.3,2446.3,4.08771]
[1730601959368,4.08614,2447.3,2446.3,4.08768]
[1730601959535,4.08614,2447.3,2446.4,0.408768]
[1730601960065,1.5438,2447.0,2446.4,0.408768]
[1730601960227,1.5438,2447.0,2445.9,4.08836]
[1730601960429,1.5438,2447.0,2445.9,4.08834]
[1730601960430,5.63056,2447.0,2445.9,4.08834]
[1730601960628,1.5438,2447.0,2446.2,4.08795]
[1730601960843,1.5438,2447.0,2446.0,8.17644]
[1730601961058,1.5438,2447.0,2446.1,0.817644]
[1730601961229,1.5438,2447.0,2445.7,1.5453]
[1730601961230,1.5438,2447.0,2446.2,0.08173907]
[1730601961565,1.5438,2447.4,2446.4,1.5453]
[1730601961759,1.5438,2447.4,2446.9,4.08678]
[1730601961969,1.5438,2447.4,2447.0,0.08171728]
[1730601962165,0.8344541,2447.8,2447.3,4.08603]